bitfinex/quotes_ETHUSD_20260216
["timestamp","ask_amount","ask_price","bid_price","bid_amount"]
[1771255219107,2.18909,1971.8,1971.1,0.52579098]
[1771255219613,0.52,1971.9,1971.2,1.26826298]
[1771255219801,2.620897,1971.8,1971.2,1.26826298]
[1771255219987,3.152897,1971.8,1971.2,1.26826298]
[1771255220184,0.0011,1972.0,1971.2,1.79405396]
[1771255220390,0.52,1971.9,1971.3,0.52579098]
[1771255220710,0.5211,1972.0,1971.3,0.52579098]
[1771255221583,0.5211,1972.0,1971.4,1.26813432]
[1771255222009,10.079045,1971.9,1971.4,1.26813432]
[1771255222212,6.030955,1971.9,1971.4,1.26813432]
[1771255222415,6.030955,1971.9,1971.0,6.14484292]
[1771255222705,4.410143,1971.9,1971.1,1.26832732]
[1771255223290,0.5211,1972.0,1971.1,1.26832732]
[1771255223494,0.0011,1972.0,1971.1,1.26832732]
[1771255223690,0.52,1971.9,1971.1,1.26832732]
[1771255224507,0.0011,1972.0,1971.1,1.7941183]
[1771255224716,0.0011,1972.0,1971.2,0.52579098]
[1771255224889,0.0011,1972.0,1971.4,0.52579098]
[1771255225915,0.0011,1972.0,1971.5,1.26806999]
[1771255227904,0.0011,1972.0,1971.4,5.07227998]
[1771255228223,0.0011,1972.0,1971.4,5.07327998]
[1771255228394,0.0011,1971.9,1971.4,5.07327998]
[1771255229291,0.0011,1971.9,1971.4,4.85577245]
[1771255229885,0.0011,1971.9,1971.4,0.001]
[1771255231422,0.0011,1972.0,1971.4,0.001]
[1771255231595,0.0011,1972.3,1971.5,0.52579098]
[1771255231989,0.0011,1972.3,1971.7,0.52579098]
[1771255232191,0.50200913,1973.1,1971.7,0.52579098]
[1771255232714,2.64501,1972.9,1971.7,0.52579098]
[1771255232916,2.622089,1972.8,1971.7,0.52579098]
[1771255233717,0.52,1972.8,1971.7,0.52579098]
[1771255233900,2.096217,1972.7,1971.7,0.52579098]
[1771255234101,0.52,1972.8,1971.9,0.52579098]
[1771255234320,0.52,1972.9,1971.9,1.08079098]
[1771255234524,0.0011,1973.1,1972.0,0.52579098]
[1771255234899,4.826316,1973.0,1972.0,0.52579098]
[1771255235097,3.426316,1973.0,1972.0,0.52579098]
[1771255235409,2.90328,1973.0,1972.0,0.52579098]
[1771255236013,0.0011,1973.1,1972.2,0.52579098]
[1771255236298,5.648787,1973.2,1972.2,1.08179098]
[1771255236498,3.75105,1973.2,1972.2,1.08179098]
[1771255237524,0.0011,1973.3,1972.3,0.52579098]
[1771255238234,0.0011,1973.3,1972.4,1.26749138]
[1771255238526,0.0011,1973.3,1972.5,0.557]
[1771255239899,0.0011,1973.3,1972.6,0.52579098]
[1771255240317,0.0011,1973.3,1972.8,0.52579098]
[1771255240521,0.0011,1973.3,1972.9,1.08279098]
[1771255241020,0.0011,1973.3,1972.9,0.557]
[1771255242618,0.0011,1973.2,1973.0,1.26710593]
[1771255242937,21.845933,1973.1,1972.1,5.07071533]
[1771255243106,22.34684213,1973.1,1972.1,5.07071533]
[1771255243306,21.845933,1973.0,1972.1,5.07071533]
[1771255243700,4.80653,1973.0,1972.1,5.07071533]
[1771255244535,0.914,1973.1,1972.3,1.26755564]
[1771255245537,0.1024,1973.1,1972.3,1.26755564]
[1771255246033,3.169798,1973.0,1972.3,1.26755564]
[1771255246201,0.1024,1973.1,1972.3,1.26755564]
[1771255246404,0.5211,1973.2,1972.3,1.26755564]
[1771255246605,0.5211,1973.2,1972.2,6.00274762]
[1771255246606,0.0011,1973.2,1972.2,6.00274762]
[1771255246919,0.0011,1973.2,1972.3,0.93252504]
[1771255247235,0.0011,1973.2,1972.4,0.56]
[1771255247811,0.0011,1973.2,1972.5,0.90041794]
[1771255248136,0.5211,1973.5,1972.5,0.90041794]
[1771255248317,0.0011,1973.5,1972.5,0.90041794]
[1771255248821,17.202879,1973.4,1972.6,1.26736287]
[1771255249529,18.1152694,1973.4,1972.6,1.26736287]
[1771255249734,13.815085,1973.3,1972.6,1.26736287]
[1771255249931,3.907504,1973.2,1972.6,1.26736287]
[1771255250228,10.428019,1973.3,1972.6,1.26736287]
[1771255250429,9.819823,1973.3,1972.6,1.26736287]
[1771255250937,2.10415,1973.1,1972.5,5.06945148]
[1771255251108,0.52,1973.3,1972.5,5.06945148]
[1771255251835,11.068384,1973.4,1972.5,5.06945148]
[1771255252607,0.1035,1973.5,1972.5,5.06945148]
[1771255252835,2.159052,1973.4,1972.5,5.96986942]
[1771255253207,0.1035,1973.5,1972.5,5.96986942]
[1771255253415,7.253204,1973.4,1972.5,5.96986942]
[1771255253744,6.007394,1973.4,1972.5,5.96986942]
[1771255254038,0.0011,1973.5,1972.6,0.90041794]
[1771255254238,0.0011,1973.5,1972.8,0.90041794]
[1771255254830,0.0011,1973.5,1972.9,1.26717015]
[1771255255139,0.5211,1974.0,1973.0,1.46341794]
[1771255255919,0.0011,1973.2,1973.1,0.90041794]
[1771255256110,0.5211,1974.0,1973.1,0.90041794]
[1771255256309,2.307995,1973.9,1973.1,0.90041794]
[1771255256511,0.0011,1973.3,1973.1,0.90041794]
[1771255256945,0.0011,1973.3,1973.1,1.26704171]
[1771255257528,0.5211,1974.0,1973.1,2.16745965]
[1771255257929,0.5211,1974.0,1973.2,0.90041794]
[1771255257930,0.41972245,1974.0,1973.2,0.90041794]
[1771255258123,0.1024,1974.2,1973.3,1.46741794]
[1771255258124,3.680261,1974.2,1973.3,1.46741794]
[1771255258744,3.680261,1974.2,1973.3,0.567]
[1771255258930,4.58015641,1974.2,1973.4,1.26684909]
[1771255259248,18.962309,1974.1,1973.4,1.26684909]
[1771255259817,0.52,1974.0,1973.4,1.26684909]
[1771255260224,18.962309,1973.9,1973.4,1.26684909]
[1771255260551,18.962309,1973.9,1973.4,1e-08]
[1771255260719,18.962309,1973.9,1973.4,1.26684909]
[1771255260720,5.782436,1973.9,1973.4,1.26684909]
[1771255260920,2.079987,1973.9,1973.2,5.06785578]
[1771255261152,0.52,1974.0,1973.2,5.06785578]
[1771255261355,4.375117,1973.9,1973.2,5.06785578]
[1771255261650,3.004855,1973.9,1973.2,5.06785578]
[1771255261869,4.675995,1974.5,1973.4,0.90041794]
[1771255262062,0.1024,1974.5,1973.4,0.90041794]
[1771255262222,2.210041,1974.3,1973.4,0.90041794]
[1771255262550,2.206331,1974.5,1973.4,0.90041794]
[1771255262965,0.5211,1974.6,1973.6,0.90041794]
[1771255262966,0.0011,1974.6,1973.6,0.90041794]
[1771255263180,0.0011,1974.6,1973.8,0.90041794]
[1771255263879,0.0011,1974.6,1973.7,0.569]
[1771255263880,13.133014,1974.5,1973.7,0.569]
[1771255264167,10.925252,1974.5,1973.7,0.569]
[1771255264370,6.870616,1974.5,1973.7,0.569]
[1771255264669,17.434489,1974.3,1973.5,1.26678489]
[1771255264853,14.227886,1974.3,1973.5,1.26678489]
[1771255266437,13.741921,1974.3,1973.5,1.26678489]
[1771255266634,0.52,1974.2,1973.5,1.26678489]
[1771255268050,0.52,1974.3,1973.5,1.26678489]
[1771255268256,0.5211,1974.3,1973.5,1.26678489]
[1771255268755,6.162057,1974.2,1973.5,1.26678489]
[1771255270181,14.611488,1974.1,1973.5,1.26678489]
[1771255271551,0.1035,1974.3,1973.5,1.26678489]
[1771255271750,0.0011,1974.3,1973.5,1.26678489]
[1771255272070,0.52,1974.4,1973.5,1.26678489]
[1771255272291,0.0011,1975.2,1973.9,0.90041794]
[1771255272580,7.456222,1975.1,1974.0,0.573]
[1771255272744,6.31569,1975.1,1974.0,0.573]
[1771255273374,0.0011,1975.2,1974.0,0.573]
[1771255273544,2.154735,1975.1,1974.0,1.47341794]
[1771255273746,2.154735,1975.1,1974.0,0.573]
[1771255274061,2.154735,1975.1,1974.1,1.26639987]
[1771255274587,0.52,1975.0,1974.1,1.26639987]
[1771255275246,9.753317,1974.9,1974.1,1.26639987]
[1771255275442,30.0,1974.8,1974.1,1.26639987]
[1771255275648,30.0,1974.6,1973.7,5.64061163]
[1771255275865,4.027074,1974.6,1973.7,5.64061163]
[1771255276065,1.433,1975.0,1973.7,6.88700619]
[1771255276275,0.1024,1974.9,1973.7,5.64061163]
[1771255276587,0.1024,1974.9,1973.8,1.24639456]
[1771255276890,5.641431,1974.8,1973.7,5.64061163]
[1771255277253,1.29478109,1974.7,1973.7,5.64061163]
[1771255277479,19.439298,1974.5,1973.7,5.64061163]
[1771255277949,18.807616,1974.3,1973.7,5.06661163]
[1771255278274,0.52,1974.2,1973.7,5.06661163]
[1771255278851,1.19238109,1974.7,1973.7,5.06661163]
[1771255279052,0.6224,1974.7,1973.7,5.64261163]
[1771255279645,2.530269,1974.6,1973.7,5.64261163]
[1771255280479,14.49588,1974.3,1973.7,5.64261163]
[1771255280781,5.517917,1974.3,1973.7,5.64261163]
[1771255281179,5.517917,1974.3,1973.7,5.06661163]
[1771255281180,24.03757,1974.2,1973.7,5.06661163]
[1771255281360,5.287997,1974.2,1973.7,5.06661163]
[1771255281674,0.52,1974.3,1973.7,5.06661163]
[1771255281850,2.802512,1974.2,1973.7,5.06661163]
[1771255282876,2.591646,1974.2,1973.7,5.06661163]
[1771255283079,2.591646,1974.2,1973.6,1.2676739]
[1771255284375,0.52,1974.1,1973.6,0.001]
[1771255285471,0.52,1974.1,1973.5,1.26778489]
[1771255285472,12.572788,1974.0,1973.5,1.26778489]
[1771255286397,2.54003,1974.0,1973.5,0.001]
[1771255286594,0.1024,1973.9,1973.2,5.00988579]
[1771255286905,17.193034,1973.7,1973.2,5.00988579]
[1771255287195,17.193034,1973.7,1973.1,5.06794601]
[1771255287392,14.272282,1973.7,1973.1,5.06794601]
[1771255287702,11.617953,1973.7,1973.1,5.06794601]
[1771255288459,11.617953,1973.7,1973.0,1.26704171]
[1771255291207,0.52,1973.6,1973.0,1.26704171]
[1771255291573,2.901817,1973.3,1972.7,1.26725482]
[1771255291778,0.52,1973.2,1972.7,1.85425482]
[1771255292002,10.13,1973.9,1972.8,1.24639456]
[1771255292003,5.777798,1973.8,1972.8,1.24639456]
[1771255292206,0.52,1973.7,1972.8,1.24639456]
[1771255292406,3.156433,1973.6,1972.7,1.85425482]
[1771255292988,3.156433,1973.6,1973.1,0.001]
[1771255294317,2.083547,1973.6,1973.1,0.001]
[1771255294474,0.52,1973.5,1973.1,0.001]
[1771255295116,1.19238109,1974.1,1973.1,0.001]
[1771255295117,0.52,1973.7,1973.1,0.001]
[1771255295486,0.52,1973.7,1973.1,1.26804171]
[1771255296224,0.41930256,1973.7,1973.2,1.24639456]
[1771255296484,2.956853,1974.3,1973.4,1.24639456]
[1771255296617,0.52,1974.2,1973.4,1.24639456]
[1771255297534,0.52,1974.2,1973.5,1.26678489]
[1771255297826,0.1024,1974.3,1973.6,0.589]
[1771255298025,0.5211,1974.4,1973.6,0.589]
[1771255299415,0.0011,1974.4,1973.7,1.24639456]
[1771255299613,0.0011,1974.4,1973.8,1.26659235]
[1771255300010,0.0011,1974.4,1973.9,1.83539456]
[1771255300628,0.0011,1974.4,1973.9,0.589]
[1771255301730,0.0011,1974.4,1974.0,1.26646403]
[1771255306113,0.0011,1974.4,1973.8,5.06623392]
[1771255306335,12.504782,1974.3,1973.8,5.06623392]
[1771255306706,0.0011,1974.3,1973.8,5.06623392]
[1771255307917,0.0011,1974.3,1973.8,6.20802308]
[1771255308239,0.0011,1974.3,1973.8,5.06623392]
[1771255308746,0.0011,1974.3,1973.9,1.14178916]
[1771255308919,0.0011,1974.3,1974.0,0.601]
[1771255309116,0.0011,1974.7,1974.1,1.14178916]
[1771255309328,0.0011,1974.7,1974.0,0.601]
[1771255310338,0.0011,1974.7,1974.1,1.26639987]
[1771255311349,0.0011,1975.1,1974.2,1.14178916]
[1771255311538,0.0011,1975.1,1974.4,1.14178916]
[1771255312430,0.0011,1975.1,1974.6,1.14178916]
[1771255312636,0.0011,1975.1,1974.5,1.26614332]
[1771255312637,0.0011,1975.1,1974.7,0.603]
[1771255314823,0.0011,1975.1,1974.5,0.604]
[1771255317154,0.0011,1975.1,1974.6,1.2660792]
[1771255320927,0.0011,1975.0,1974.6,1.2660792]
[1771255321325,0.0011,1975.0,1974.6,1.2060792]
[1771255322128,3.81179369,1974.9,1974.4,0.001]
[1771255322331,1.24801369,1974.6,1973.8,1.26654105]
[1771255322656,25.028807,1974.5,1973.8,1.26654105]
[1771255323264,25.028807,1974.5,1973.6,0.613]
[1771255323429,0.75358364,1974.1,1973.5,0.001]
[1771255324055,2.767555,1974.0,1973.5,0.001]
[1771255324259,2.593287,1974.0,1973.5,0.001]
[1771255325348,2.593287,1974.0,1973.3,1e-08]
[1771255325661,2.593287,1974.0,1973.3,1.26691329]
[1771255325854,2.593287,1974.0,1973.1,1.26804171]
[1771255326030,21.795118,1973.8,1973.1,1.26804171]
[1771255326646,16.667434,1973.8,1973.1,1.26804171]
[1771255327035,21.513442,1973.6,1973.1,1.26804171]
[1771255327236,20.172566,1973.6,1973.1,1.26804171]
[1771255327463,0.52,1973.6,1973.1,1.26804171]
[1771255327658,0.1024,1974.1,1973.2,1.14178916]
[1771255327879,0.1024,1974.1,1973.3,1.26691329]
[1771255327880,0.52,1974.0,1973.3,1.26691329]
[1771255329038,0.52,1974.1,1973.3,2.40870245]
[1771255329357,2.19348,1974.2,1973.5,1.14178916]
[1771255329558,0.75358364,1973.9,1973.5,1.14178916]
[1771255330259,0.6224,1974.3,1973.6,1.26672071]
[1771255330459,17.965123,1974.5,1973.6,1.26672071]
[1771255330654,2.7833,1974.2,1973.6,2.40850987]
[1771255330848,0.1024,1974.2,1973.6,2.40850987]
[1771255331658,0.1024,1974.2,1973.6,2.31650987]
[1771255331864,3.231277,1974.1,1973.6,2.31650987]
[1771255332061,0.52,1974.3,1973.6,2.31650987]
[1771255332240,3.0483,1974.2,1973.6,2.31650987]
[1771255332440,0.6224,1974.3,1973.6,2.31650987]
[1771255332640,2.7833,1974.2,1973.6,2.31650987]
[1771255332963,3.034039,1974.2,1973.6,2.31650987]
[1771255333267,3.035139,1974.2,1973.6,1.17472071]
[1771255333439,22.797161,1974.1,1973.6,1.17472071]
[1771255334158,22.797161,1974.1,1973.1,0.001]
[1771255334159,15.200776,1974.0,1973.1,0.001]
[1771255334337,0.52,1973.9,1973.1,5.06865316]
[1771255334867,0.52,1973.9,1973.1,6.19883169]
[1771255335240,0.0011,1974.2,1973.2,1.13017853]
[1771255335435,0.52,1974.1,1973.2,1.13017853]
[1771255335964,4.222473,1974.0,1973.3,0.62]
[1771255336272,3.118836,1974.0,1973.4,1.26684909]
[1771255336461,0.52,1974.1,1973.4,1.26684909]
[1771255336860,2.636836,1974.0,1973.4,1.26684909]
[1771255337855,0.52,1974.1,1973.4,1.26684909]
[1771255338674,0.0011,1974.2,1973.4,1.26684909]
[1771255338857,0.52,1974.1,1973.4,1.26684909]
[1771255339855,2.086399,1974.0,1973.4,1.26684909]
[1771255340057,0.52,1974.1,1973.4,1.26684909]
[1771255340778,2.56973,1974.1,1973.4,1.26684909]
[1771255340958,0.52,1974.1,1973.4,1.26684909]
[1771255341686,2.329762,1974.0,1973.4,1.26684909]
[1771255342183,0.52,1974.1,1973.4,1.26684909]
[1771255342861,3.741999,1974.1,1973.4,1.26684909]
[1771255343061,2.12335,1974.0,1973.4,1.26684909]
[1771255343267,0.0011,1974.2,1973.4,1.26684909]
[1771255343470,3.09385,1974.0,1973.4,1.26684909]
[1771255343954,0.52,1974.1,1973.4,1.26684909]
[1771255344479,4.464477,1974.0,1973.4,1.26684909]
[1771255344779,0.52,1974.1,1973.4,1.26684909]
[1771255344954,3.164862,1974.0,1973.4,1.26684909]
[1771255345370,0.52,1974.1,1973.4,1.26684909]
[1771255345678,3.033992,1974.0,1973.4,1.26684909]
[1771255346281,0.0011,1974.0,1973.4,1.26684909]
[1771255346499,11.756817,1973.9,1973.4,1.26684909]
[1771255347159,11.028043,1973.9,1973.3,0.001]
[1771255347358,6.301572,1973.9,1973.3,0.001]
[1771255347953,0.52,1973.8,1973.3,0.001]
[1771255350554,3.23147125,1973.7,1973.1,1.26799221]
[1771255350770,8.028556,1973.6,1973.1,1.26799221]
[1771255351556,0.9141,1974.0,1973.1,1.26799221]
[1771255351557,0.00642817,1973.4,1973.1,2.39817074]
[1771255352262,4.180828,1973.7,1973.1,1.90099221]
[1771255352573,17.23238,1973.6,1973.1,1.26799221]
[1771255352770,1.15139625,1973.7,1973.0,0.001]
[1771255352972,1.15139625,1973.3,1972.6,0.001]
[1771255353151,13.28731025,1973.1,1972.3,0.636]
[1771255353480,4.600493,1973.0,1972.4,5.0698772]
[1771255353680,0.52,1972.9,1972.3,0.001]
[1771255354076,20.04590625,1972.7,1971.9,1.26781276]
[1771255354388,1.15139625,1972.4,1971.8,1.26783316]
[1771255354587,25.009419,1972.2,1971.8,1.26783316]
[1771255354771,20.400154,1972.2,1971.5,1.26806999]
[1771255354972,20.400154,1972.2,1971.5,1.90306999]
[1771255355281,4.806968,1972.2,1971.5,1.26806999]
[1771255355481,3.366968,1972.2,1971.5,1.26806999]
[1771255355876,3.366968,1972.2,1971.4,5.07327998]
[1771255356991,2.069701,1972.2,1971.5,0.637]
[1771255357661,2.387561,1972.6,1971.6,1.13017853]
[1771255357862,0.52,1972.5,1971.8,1.13017853]
[1771255358104,0.52,1972.7,1971.9,1.76717853]
[1771255358619,1.15139625,1973.3,1972.0,1.13017853]
[1771255358766,0.1024,1973.0,1972.0,1.13017853]
[1771255359065,0.52,1972.9,1972.0,1.13017853]
[1771255359966,0.52,1972.9,1972.1,1.26768419]
[1771255360173,0.52,1972.9,1972.2,0.638]
[1771255360477,6.672464,1972.9,1972.2,0.638]
[1771255360868,7.82386025,1972.9,1972.1,1.26768419]
[1771255361064,30.0,1972.6,1972.1,1.26768419]
[1771255361261,19.311961,1972.4,1972.1,1.26768419]
[1771255361474,19.104544,1972.4,1972.1,1.26768419]
[1771255361679,18.85511,1972.4,1972.1,1.26768419]
[1771255361896,18.85511,1972.4,1972.0,1.26769656]
[1771255363878,1.15139625,1972.7,1971.9,5.07112007]
[1771255363879,7.7795129,1973.0,1971.9,5.07112007]
[1771255364090,1.41843901,1973.1,1972.1,1.45715039]
[1771255364091,0.1024,1972.8,1972.1,1.45715039]
[1771255364298,1.31603901,1973.1,1972.1,1.45715039]
[1771255364605,2.028006,1972.8,1972.1,1.45715039]
[1771255364886,7.96636914,1973.4,1972.1,1.45715039]
[1771255364887,10.00955191,1973.4,1972.1,1.45715039]
[1771255365089,12.011308,1973.2,1972.1,1.45715039]
[1771255365460,13.32734701,1973.2,1972.1,1.45715039]
[1771255365666,28.785236,1973.0,1972.0,0.641]
[1771255365894,19.178063,1972.8,1972.0,0.641]
[1771255366061,15.587736,1972.8,1972.1,1.26768419]
[1771255368894,17.0509483,1972.8,1972.1,1.26768419]
[1771255369097,30.0,1972.7,1972.1,1.26768419]
[1771255369282,19.093072,1972.5,1972.1,1.26768419]
[1771255369597,0.52,1972.6,1972.1,1.26768419]
[1771255370087,0.52,1972.7,1972.1,1.26768419]
[1771255370272,0.52,1972.8,1972.1,1.26768419]
[1771255370463,1.4632123,1973.1,1972.1,1.26768419]
[1771255370669,6.893199,1972.8,1972.1,1.26768419]
[1771255370869,2.830162,1972.8,1972.1,1.26768419]
[1771255371070,0.52,1972.8,1972.1,1.26768419]
[1771255371513,0.0011,1972.7,1972.1,1.26768419]
[1771255372584,0.0011,1972.7,1972.1,2.70794861]
[1771255374601,0.0011,1972.7,1972.2,0.65]
[1771255374905,1.4632123,1973.1,1972.3,1.44026442]
[1771255374906,10.611749,1973.1,1972.3,1.44026442]
[1771255375108,10.611749,1973.1,1972.4,1.91749138]
[1771255375109,30.0926013,1973.1,1972.4,1.91749138]
[1771255375287,30.0,1972.9,1972.4,1.26749138]
[1771255375612,11.794976,1972.9,1972.4,1.26749138]
[1771255375982,9.041729,1972.8,1972.4,2e-08]
[1771255376297,7.349775,1972.8,1972.4,2e-08]
[1771255376591,7.349775,1972.8,1972.4,0.96847414]
[1771255376787,0.52,1973.0,1972.4,1.26749139]
[1771255376986,5.254883,1972.9,1972.4,1.26749139]
[1771255377299,0.52,1973.0,1972.4,1e-08]
[1771255377503,3.476009,1972.9,1972.4,1e-08]
[1771255378311,3.476009,1972.9,1972.4,0.65400001]
[1771255378513,9.254284,1972.8,1972.4,0.65400001]
[1771255379503,9.254284,1972.8,1972.5,1e-08]
[1771255379882,9.254284,1972.8,1972.4,5.7237085]
[1771255380084,7.685298,1972.9,1972.5,1e-08]
[1771255380290,2.585665,1973.1,1972.5,2.70769155]
[1771255380609,6.118817,1973.1,1972.6,0.656]
[1771255380906,0.1024,1973.3,1972.6,2.09626442]
[1771255381106,27.653674,1973.1,1972.6,0.656]
[1771255381282,27.653674,1973.1,1972.5,1.26742713]
[1771255381283,27.653674,1973.1,1972.5,0.657]
[1771255381679,26.582302,1973.1,1972.6,1.26736287]
[1771255381885,16.938126,1973.1,1972.6,1.26736287]
[1771255382709,6.38,1973.7,1972.6,1.26736287]
[1771255382710,0.1024,1973.6,1972.6,2.70762729]
[1771255382918,0.1024,1973.3,1972.6,2.70762729]
[1771255383120,0.1024,1973.4,1972.7,1.44026442]
[1771255383426,30.0,1973.2,1972.8,0.659]
[1771255383587,29.313331,1973.1,1972.6,1.92636287]
[1771255383787,0.0011,1972.7,1972.6,1.92636287]
[1771255384401,0.0011,1972.7,1972.4,0.66]
[1771255385594,0.0011,1972.7,1972.4,2.10026442]
[1771255386125,0.0011,1972.7,1972.5,1.26742712]
[1771255389639,0.0011,1972.7,1972.5,2.70769154]
[1771255389811,0.0011,1973.0,1972.6,1.44026442]
[1771255390329,0.0011,1973.0,1972.7,1.93629862]
[1771255390508,0.0011,1973.0,1972.7,3.37656304]
[1771255391911,0.0011,1973.0,1972.7,1.93629862]
[1771255392220,0.0033,1973.0,1972.7,1.93629862]
[1771255392526,10.242742,1973.8,1972.8,1.44026442]
[1771255392720,10.242742,1973.8,1972.9,0.674]
[1771255393031,19.779908,1973.6,1972.9,0.674]
[1771255394796,19.779908,1973.4,1972.9,1.26710626]
[1771255395013,1.81140197,1973.3,1972.7,0.675]
[1771255395214,17.692764,1973.1,1972.7,0.675]
[1771255395423,11.131428,1973.1,1972.6,2.18135209]
[1771255395725,8.721428,1973.1,1972.6,2.18135209]
[1771255395925,7.011308,1973.1,1972.6,2.18135209]
[1771255397616,1.81250197,1973.5,1972.6,2.18135209]
[1771255397818,2.785099,1973.3,1972.6,2.18135209]
[1771255398006,2.236368,1973.3,1972.6,4.01695922]
[1771255398211,0.0011,1973.5,1972.6,4.01695922]
[1771255398212,0.0011,1973.5,1972.7,1.83560713]
[1771255398407,0.1035,1973.5,1972.8,0.677]
[1771255398720,0.1035,1973.5,1972.9,1.26717015]
[1771255400807,0.0011,1973.5,1972.9,1.26717015]
[1771255403518,0.0011,1973.5,1973.0,0.682]
[1771255404236,9.02499,1973.4,1973.0,0.682]
[1771255404430,9.02499,1973.4,1972.8,1.95023201]
[1771255404606,6.662968,1973.4,1972.8,1.95023201]
[1771255405006,5.662968,1973.4,1972.8,1.95023201]
[1771255405227,2.33250197,1973.5,1972.8,1.95023201]
[1771255405420,0.5211,1973.5,1972.8,1.95023201]
[1771255407324,0.0011,1973.5,1972.8,1.95023201]
[1771255408051,1.81250197,1973.5,1972.8,0.683]
[1771255408212,1.81140197,1973.3,1972.8,0.683]
[1771255408922,4.652219,1973.4,1972.8,1.95022942]
[1771255409114,4.652219,1973.4,1972.8,1.95023043]
[1771255409326,0.0011,1973.5,1972.8,3.78583756]
[1771255409739,0.0011,1973.5,1972.9,1.83660713]
[1771255409909,0.0011,1973.5,1973.0,3.10271306]
[1771255410115,0.0011,1973.5,1973.1,0.686]
[1771255410337,0.0011,1973.5,1973.2,1.83560713]
[1771255412139,0.0011,1973.5,1973.3,1.26691329]
[1771255412349,0.0011,1973.5,1973.4,0.688]
[1771255413212,0.0011,1973.8,1973.4,0.688]
[1771255414212,0.0011,1973.8,1973.5,1.26678489]
[1771255415808,0.0011,1973.8,1973.6,0.694]
[1771255416027,0.0022,1973.8,1973.6,0.694]
[1771255416433,0.0011,1973.8,1973.7,1.26665653]
[1771255418153,0.0011,1973.8,1973.6,0.6929]
[1771255420123,0.0011,1973.8,1973.6,1.95961241]
[1771255420331,0.0011,1973.8,1973.6,0.6929]
[1771255421128,1.81250197,1973.8,1973.0,1.26710593]
[1771255421328,1.81250197,1973.8,1973.1,0.7]
[1771255421569,1.81140197,1973.6,1973.1,0.7]
[1771255422650,2.618096,1973.7,1972.9,1.96814448]
[1771255423038,3.187212,1973.7,1972.9,1.96814448]
[1771255423238,3.188312,1973.7,1972.9,1.96814448]
[1771255423560,1.81250197,1973.7,1973.5,0.001]
[1771255424727,0.0011,1973.7,1973.5,0.001]
[1771255427572,1.67283812,1973.7,1973.4,0.001]
[1771255427870,1.67173812,1973.6,1973.4,0.001]
[1771255431353,1.67173812,1973.6,1973.4,0.0002]
[1771255432379,0.0011,1973.7,1973.4,0.0002]
[1771255433631,14.60354112,1973.6,1973.4,0.0002]
[1771255433864,1.67173812,1973.6,1973.4,0.0002]
[1771255435373,6.76621212,1973.6,1973.5,0.001]
[1771255435538,6.76621212,1973.6,1973.5,0.0002]
[1771255436059,6.76731212,1973.6,1973.5,0.0002]
[1771255436576,2.568473,1973.6,1973.5,0.0002]
[1771255437182,0.0011,1973.6,1973.5,0.0002]
[1771255437475,2.915031,1973.6,1973.5,0.0002]
[1771255438170,3.426031,1973.6,1973.5,0.0002]
[1771255438871,4.576102,1973.6,1973.5,0.0002]
[1771255439641,2.063128,1973.6,1973.5,0.0002]
[1771255441241,0.0011,1973.6,1973.2,0.001]
[1771255441941,19.779908,1973.2,1972.6,0.001]
[1771255442141,1.77413812,1973.3,1971.9,0.001]
[1771255442142,13.90918,1972.8,1971.9,1.26879539]
[1771255442341,0.52,1972.7,1971.9,0.001]
[1771255442540,12.17148512,1972.6,1971.9,0.001]
[1771255442764,1.67173812,1972.6,1971.9,0.001]
[1771255445352,2.219426,1972.6,1971.9,0.001]
[1771255445553,2.58573812,1973.3,1972.1,1.70266879]
[1771255445788,0.6224,1973.2,1972.1,1.70266879]
[1771255446285,0.1024,1973.2,1972.1,1.70266879]
[1771255446648,0.1024,1973.2,1972.3,1.70266879]
[1771255446963,0.1024,1973.4,1972.3,1.70266879]
[1771255447166,0.6224,1973.4,1972.3,1.70266879]
[1771255447575,1.67173812,1973.5,1972.5,1.70266879]
[1771255447576,5.653255,1973.5,1972.5,1.70266879]
[1771255448072,13.502809,1973.3,1972.5,1.70266879]
[1771255448474,6.623113,1973.3,1972.5,1.70266879]
[1771255448658,0.52,1973.3,1972.5,1.70266879]
[1771255449178,0.0011,1973.6,1972.7,1.70266879]
[1771255449751,0.0011,1973.5,1972.8,2.96990317]
[1771255453665,0.0011,1973.5,1972.8,1.70266879]
[1771255453985,3.989081,1973.4,1972.6,3.59524833]
[1771255454300,1.64285677,1973.5,1972.6,3.59527136]
[1771255454784,6.905957,1973.1,1972.5,0.914]
[1771255454960,3.08233,1972.9,1972.4,0.001]
[1771255456304,2.507267,1972.9,1972.4,0.001]
[1771255456971,12.636878,1972.7,1972.4,0.001]
[1771255457278,0.1024,1972.9,1972.4,0.001]
[1771255457459,2.685222,1972.8,1972.4,0.001]
[1771255457796,0.52,1972.8,1972.4,0.001]
[1771255458001,1.64175677,1972.7,1972.4,0.001]
[1771255458205,21.52406477,1972.4,1972.1,0.001]
[1771255458504,19.779908,1972.1,1971.3,0.001]
[1771255458803,13.03824,1972.1,1971.6,0.001]
[1771255458958,13.03824,1972.1,1971.3,0.001]
[1771255459158,13.03824,1972.1,1971.6,0.001]
[1771255459589,13.03824,1972.1,1971.7,0.001]
[1771255459895,0.52,1972.0,1971.6,0.001]
[1771255460384,0.52,1972.0,1971.7,0.001]
[1771255460558,0.52,1972.0,1971.6,0.001]
[1771255461571,2.16175677,1972.0,1971.2,0.642]
[1771255461792,1.64175677,1971.9,1971.2,0.642]
[1771255462104,18.096948,1971.6,1970.7,2.32890887]
[1771255462281,20.005438,1971.5,1970.7,0.697]
[1771255462486,0.52,1971.5,1970.7,0.697]
[1771255462989,17.955683,1971.4,1970.7,0.697]
[1771255463195,1.64175677,1971.4,1970.4,1.63190887]
[1771255463597,19.779908,1971.3,1970.4,1.63190887]
[1771255463799,19.779908,1971.3,1970.3,1.96582659]